fUST/lending_fUST_20241224
["ID","MTS","AMOUNT","RATE_DAILY","PERIOD"]
[346474669,1734989875886,2197.41,0.000199,31]
[346474670,1734989875949,2197.41,0.000199,31]
[346474671,1734989876005,2197.41,0.000199,31]
[346474672,1734989876094,2197.41,0.000199,31]
[346474673,1734989876152,2197.41,0.000199,31]
[346474674,1734989876207,2197.41,0.000199,31]
[346474675,1734989876252,2197.41,0.000199,31]
[346474676,1734989876316,2197.41,0.000199,31]
[346474677,1734989876530,2197.41,0.000199,31]
[346474678,1734989876776,2197.41,0.000199,31]
[346474679,1734989876805,2197.41,0.000199,31]
[346474680,1734989876834,2197.41,0.000199,31]
[346474681,1734989876864,2197.41,0.000199,31]
[346474684,1734990202608,212.8710226,9.936e-05,2]
[346474689,1734990402990,212.8710226,9.936e-05,2]
[346474694,1734990487687,1846.0,0.000199,31]
[346474695,1734990487722,1846.0,0.000199,31]
[346474696,1734990487754,1846.0,0.000199,31]
[346474697,1734990487812,1846.0,0.000199,31]
[346474698,1734990487872,1846.0,0.000199,31]
[346474699,1734990487948,1846.0,0.000199,31]
[346474700,1734990487997,1846.0,0.000199,31]
[346474701,1734990488065,1846.0,0.000199,31]
[346474702,1734990488118,1846.0,0.000199,31]
[346474703,1734990488219,1846.0,0.000199,31]
[346474704,1734990488278,1846.0,0.000199,31]
[346474705,1734990488312,1846.0,0.000199,31]
[346474706,1734990488368,1846.0,0.000199,31]
[346474707,1734990488423,1846.0,0.000199,31]
[346474708,1734990488481,1846.0,0.000199,31]
[346474709,1734990488541,1846.0,0.000199,31]
[346474710,1734990537405,202.14186947,0.0002104,60]
[346474714,1734990629501,7268.13,0.0002207,60]
[346474752,1734990636192,-212.8710226,0.00010138,2]
[346474753,1734990636201,-408.226,0.000106,2]
[346474754,1734990636211,-229.597,0.00010935,2]
[346474755,1734990636220,-1971.19235088,0.00011058,2]
[346474756,1734990636230,-152.0,0.00011157,2]
[346474757,1734990636239,-300.0,0.00011157,2]
[346474758,1734990636248,-171.2433655,0.00011157,2]
[346474759,1734990636258,-500.0,0.00011157,2]
[346474760,1734990636267,-259.00469716,0.00011157,2]
[346474761,1734990636276,-292.63510455,0.00011157,2]
[346474762,1734990636286,-5110.22060089,0.00011158,2]
[346474763,1734990636304,-500.0,0.00011158,2]
[346474884,1734990638331,-9391.42195319,0.00011158,2]
[346474886,1734990638343,-2401.25401516,0.00011158,2]
[346474887,1734990638352,-151.0,0.00011158,2]
[346474889,1734990638361,-151.0,0.00011158,2]
[346474891,1734990638370,-151.0,0.00011158,2]
[346474892,1734990638379,-151.0,0.00011158,2]
[346474894,1734990638388,-151.0,0.00011158,2]
[346474896,1734990638398,-151.0,0.00011158,2]
[346474898,1734990638407,-151.0,0.00011158,2]
[346474900,1734990638417,-151.0,0.00011158,2]
[346474901,1734990638426,-151.0,0.00011158,2]
[346474902,1734990638435,-151.0,0.00011158,2]
[346474904,1734990638444,-300.970298,0.00011158,2]
[346474905,1734990638453,-150.0,0.00011158,2]
[346474906,1734990638462,-151.0,0.00011158,2]
[346474907,1734990638471,-151.0,0.00011158,2]
[346474908,1734990638480,-151.0,0.00011158,2]
[346474909,1734990638489,-151.0,0.00011158,2]
[346474910,1734990638499,-270.058799,0.00011158,2]
[346474911,1734990638508,-534.0,0.00011158,2]
[346474912,1734990638517,-2127.0,0.00011158,2]
[346474913,1734990638526,-151.0,0.00011158,2]
[346474914,1734990638536,-151.0,0.00011158,2]
[346474915,1734990638546,-151.0,0.00011158,2]
[346474916,1734990638557,-151.0,0.00011158,2]
[346474917,1734990638566,-151.0,0.00011158,2]
[346474918,1734990638575,-191.662231,0.00011158,2]
[346474919,1734990638585,-151.0,0.00011158,2]
[346474920,1734990638594,-241.395931,0.00011158,2]
[346474921,1734990638603,-2358.0,0.00011158,2]
[346474922,1734990638613,-151.0,0.00011158,2]
[346474923,1734990638779,-151.0,0.00011158,2]
[346474924,1734990638789,-151.0,0.00011158,2]
[346474925,1734990638799,-639.725364,0.00011158,2]
[346474926,1734990638810,-639.725364,0.00011158,2]
[346474927,1734990638820,-639.725364,0.00011158,2]
[346474928,1734990638829,-639.725364,0.00011158,2]
[346474929,1734990638839,-639.725364,0.00011158,2]
[346474930,1734990638848,-639.725364,0.00011158,2]
[346474931,1734990638858,-151.0,0.00011158,2]
[346474932,1734990638867,-151.0,0.00011158,2]
[346474933,1734990638877,-151.0,0.00011158,2]
[346474934,1734990638887,-292.766062,0.00011158,2]
[346474935,1734990638898,-151.0,0.00011158,2]
[346474936,1734990638908,-151.0,0.00011158,2]
[346474937,1734990638918,-151.0,0.00011158,2]
[346474938,1734990638929,-151.0,0.00011158,2]
[346474939,1734990638939,-3872.02699679,0.00011158,2]
[346474940,1734990638952,-1300.47226199,0.00011158,2]
[346474949,1734990640453,-163.649212,0.00011158,2]
[346474950,1734990640462,-151.0,0.00011158,2]
[346474951,1734990640471,-151.0,0.00011158,2]
[346474952,1734990640480,-4.550788,0.00011158,2]
[346474953,1734990640492,-4997.5600244,0.00011158,2]
[346474954,1734990640505,-1107.13640295,0.00011158,2]
[346474955,1734990640517,-1856.79220046,0.00011158,2]
[346474956,1734990640528,-12518.76293116,0.00011158,2]
[346474957,1734990640540,-4751.28767065,0.00011158,2]
[346474958,1734990640557,-457.5,0.00011158,2]
[346474960,1734990640569,-307.22,0.00011158,2]
[346474961,1734990641092,-1296.2266425,0.00011158,2]
[346474962,1734990641104,-867.05953193,0.00011158,2]
[346474963,1734990641116,-132861.46512076,0.00011158,2]
[346474964,1734990641142,-22830.0,0.00011158,2]
[346474983,1734990643227,-151.0,0.00011158,2]
[346474984,1734990643237,-224.481998,0.00011158,2]
[346474985,1734990643269,-56797.7118791,0.00011158,2]
[346474986,1734990643281,-442.12338,0.00011158,2]
[346474987,1734990643292,-1441.21458112,0.00011158,2]
[346474990,1734990643649,-2102.31373258,0.00011158,2]
[346474991,1734990643660,-1190.63509591,0.00011158,2]
[346474992,1734990643738,-9795.59998975,0.00011158,2]
[346475000,1734990646358,-345.964,0.00011157,2]
[346475001,1734990646370,-154.036,0.00011157,2]
[346475002,1734990646380,-487.73699943,0.00011157,2]
[346475003,1734990646389,-691.04905136,0.00011158,2]
[346475004,1734990646400,-708.3126624,0.00011158,2]
[346475005,1734990646412,-993.65356846,0.00011158,2]
[346475006,1734990646432,-62470.00055,0.00011158,2]
[346475007,1734990646444,-52865.16525685,0.00011158,2]
[346475008,1734990646455,-39691.585149,0.00011158,2]
[346475009,1734990654879,165.214017,0.00018144,31]
[346475014,1734991100294,1550.78,0.000199,31]
[346475015,1734991100341,1550.78,0.000199,31]
[346475016,1734991100393,1550.78,0.000199,31]
[346475017,1734991100483,1550.78,0.000199,31]
[346475018,1734991100593,1550.78,0.000199,31]
[346475019,1734991100648,1550.78,0.000199,31]
[346475020,1734991100678,1550.78,0.000199,31]
[346475021,1734991100707,1550.78,0.000199,31]
[346475022,1734991100765,1550.78,0.000199,31]
[346475023,1734991100828,1550.78,0.000199,31]
[346475024,1734991101233,1550.78,0.000199,31]
[346475025,1734991101266,1550.78,0.000199,31]
[346475026,1734991101333,1550.78,0.000199,31]
[346475027,1734991101384,1550.78,0.000199,31]
[346475028,1734991101438,1550.78,0.000199,31]
[346475029,1734991101500,1550.78,0.000199,31]
[346475037,1734991538125,-387.83951324,0.00010158,2]
[346475040,1734991629090,-849.44296064,0.00010158,2]
[346475041,1734991638197,-109.98066442,0.00010158,2]
[346475042,1734991638225,-300.0,0.00010499,2]
[346475043,1734991638252,-64.26096962,0.00010499,2]
[346475044,1734991712543,1287.28,0.000199,31]
[346475045,1734991712604,1287.28,0.000199,31]
[346475046,1734991712660,1287.28,0.000199,31]
[346475047,1734991712719,1287.28,0.000199,31]
[346475048,1734991712773,1287.28,0.000199,31]
[346475049,1734991712843,1287.28,0.000199,31]
[346475050,1734991712891,1287.28,0.000199,31]
[346475051,1734991712963,1287.28,0.000199,31]
[346475052,1734991713024,1287.28,0.000199,31]
[346475053,1734991713085,1287.28,0.000199,31]
[346475054,1734991713175,1287.28,0.000199,31]
[346475055,1734991713274,1287.28,0.000199,31]
[346475056,1734991713337,1287.28,0.000199,31]
[346475057,1734991713374,1287.28,0.000199,31]
[346475058,1734991713405,1287.28,0.000199,31]
[346475059,1734991713452,1287.28,0.000199,31]
[346475061,1734991759067,-300.0,0.00010499,2]
[346475062,1734991759095,-300.0,0.00010499,2]
[346475063,1734991759122,-609.53981427,0.000105,2]
[346475064,1734991759160,-1209.53981427,0.000105,2]
[346475065,1734991759202,-1209.53981427,0.000105,2]
[346475066,1734991784131,-1282.11220312,0.000105,2]
[346475067,1734991784189,-962.61232762,0.000105,2]
[346475068,1734991784231,-181.79739222,0.000105,2]
[346475069,1734991808926,-853.92826117,0.000105,2]
[346475070,1734991808957,-258.73407358,0.000105,2]
[346475071,1734991808987,-14.55629449,0.000106,2]
[346475107,1734991832507,-401.36870551,0.000106,2]
[346475109,1734991832516,-1916.72612925,0.00011058,2]
[346475111,1734991832526,-666.0,0.00011058,2]
[346475113,1734991832535,-152.0,0.00011153,2]
[346475115,1734991832544,-300.0,0.00011157,2]
[346475117,1734991832553,-300.0,0.00011157,2]
[346475119,1734991832563,-181.04606712,0.00011157,2]
[346475120,1734991832572,-7500.82127704,0.00011158,2]
[346475122,1734991832581,-1200.62700758,0.00011158,2]
[346475124,1734991832590,-182.692,0.00011158,2]
[346475126,1734991832600,-150.0,0.00011158,2]
[346475128,1734991832609,-191.049,0.00011158,2]
[346475130,1734991832618,-251.407,0.00011158,2]
[346475132,1734991832627,-151.0,0.00011158,2]
[346475134,1734991832636,-151.0,0.00011158,2]
[346475136,1734991832645,-151.0,0.00011158,2]
[346475138,1734991832654,-151.0,0.00011158,2]
[346475140,1734991832663,-272.971865,0.00011158,2]
[346475142,1734991832672,-183.678,0.00011158,2]
[346475144,1734991832684,-150.0,0.00011158,2]
[346475146,1734991832695,-151.0,0.00011158,2]
[346475148,1734991832706,-151.0,0.00011158,2]
[346475150,1734991832715,-151.0,0.00011158,2]
[346475152,1734991832726,-534.0,0.00011158,2]
[346475154,1734991832735,-2127.0,0.00011158,2]
[346475156,1734991832744,-2358.0,0.00011158,2]
[346475157,1734991832754,-151.0,0.00011158,2]
[346475158,1734991832764,-151.0,0.00011158,2]
[346475159,1734991832775,-151.0,0.00011158,2]
[346475161,1734991832784,-151.0,0.00011158,2]
[346475162,1734991832793,-151.0,0.00011158,2]
[346475163,1734991832803,-151.0,0.00011158,2]
[346475164,1734991832812,-151.0,0.00011158,2]
[346475165,1734991832821,-151.0,0.00011158,2]
[346475166,1734991832831,-176.96647,0.00011158,2]
[346475167,1734991832840,-167.643358,0.00011158,2]
[346475168,1734991832849,-167.643358,0.00011158,2]
[346475169,1734991832859,-167.643358,0.00011158,2]
[346475170,1734991832868,-167.643358,0.00011158,2]
[346475171,1734991832878,-167.643358,0.00011158,2]
[346475172,1734991832887,-167.643358,0.00011158,2]
[346475173,1734991832897,-151.0,0.00011158,2]
[346475174,1734991832906,-151.0,0.00011158,2]
[346475175,1734991832915,-151.0,0.00011158,2]
[346475176,1734991832924,-151.0,0.00011158,2]
[346475177,1734991832934,-151.0,0.00011158,2]
[346475178,1734991832943,-290.48839,0.00011158,2]
[346475179,1734991832952,-151.0,0.00011158,2]
[346475180,1734991832961,-151.0,0.00011158,2]
[346475181,1734991832970,-151.0,0.00011158,2]
[346475182,1734991832979,-171.497474,0.00011158,2]
[346475183,1734991832988,-151.0,0.00011158,2]
[346475184,1734991832998,-151.0,0.00011158,2]
[346475185,1734991833007,-151.0,0.00011158,2]
[346475186,1734991833017,-151.0,0.00011158,2]
[346475187,1734991833026,-284.049529,0.00011158,2]
[346475188,1734991833035,-15944.62555192,0.00011158,2]
[346475189,1734991833048,-2517.52643246,0.00011158,2]
[346475190,1734991833086,-233440.87436557,0.00011158,2]
[346475191,1734991833097,-355.5,0.00011158,2]
[346475192,1734991833108,-1272.32,0.00011158,2]
[346475206,1734991838472,-6591.19300095,0.00011158,2]
[346475207,1734991838484,-5000.0,0.00011158,2]
[346475208,1734991838495,-14104.73334923,0.00011158,2]
[346475209,1734991838529,-29018.53888665,0.00011158,2]
[346475210,1734991838574,-6219.30928367,0.00011158,2]
[346475211,1734991838586,-3119.2873114,0.00011158,2]
[346475212,1734991838598,-489.58111335,0.00011158,2]
[346475224,1734991840476,-1270.48368068,0.00011158,2]
[346475350,1734991844001,-151.0,0.00011158,2]
[346475352,1734991844011,-151.0,0.00011158,2]
[346475354,1734991844020,-151.0,0.00011158,2]
[346475356,1734991844029,-1302.74909781,0.00011158,2]
[346475358,1734991844041,-4249.366214,0.00011158,2]
[346475360,1734991844053,-1557.87662,0.00011158,2]
[346475587,1734991846448,-1100.70397538,0.00011158,2]
[346475589,1734991846461,-3329.5144632,0.00011158,2]
[346475593,1734991846484,-686.47527185,0.00011158,2]
[346475595,1734991846496,-25769.06,0.00011158,2]
[346475597,1734991846507,-18010.45478315,0.00011158,2]
[346476529,1734991855601,275.0,0.0002207,60]
[346476561,1734991855899,275.52,0.0002207,60]
[346476601,1734991856290,550.5,0.0002207,60]
[346476612,1734992234841,360.34549204,9.972e-05,2]
[346476613,1734992324492,1096.92,0.000199,31]
[346476614,1734992324609,1096.92,0.000199,31]
[346476615,1734992324823,1096.92,0.000199,31]
[346476616,1734992324859,1096.92,0.000199,31]
[346476617,1734992324902,1096.92,0.000199,31]
[346476618,1734992324933,1096.92,0.000199,31]
[346476619,1734992324970,1096.92,0.000199,31]
[346476620,1734992325000,1096.92,0.000199,31]
[346476621,1734992325050,1096.92,0.000199,31]
[346476622,1734992325092,1096.92,0.000199,31]
[346476623,1734992325151,1096.92,0.000199,31]
[346476624,1734992325212,1096.92,0.000199,31]
[346476625,1734992325268,1096.92,0.000199,31]
[346476626,1734992325393,1096.92,0.000199,31]
[346476627,1734992325427,1096.92,0.000199,31]
[346476628,1734992325461,1096.92,0.000199,31]
[346476633,1734992931513,-300.0,0.00010175,2]
[346476634,1734992931542,-300.0,0.00010175,2]
[346476636,1734992931574,-648.86911776,0.00010176,2]
[346476638,1734992931643,-1248.86911776,0.00010176,2]
[346476639,1734992937116,921.5,0.000199,31]
[346476640,1734992937170,921.5,0.000199,31]
[346476641,1734992937229,921.5,0.000199,31]
[346476642,1734992937285,921.5,0.000199,31]
[346476643,1734992937361,921.5,0.000199,31]
[346476644,1734992937414,921.5,0.000199,31]
[346476645,1734992937472,921.5,0.000199,31]
[346476646,1734992937700,921.5,0.000199,31]
[346476647,1734992937742,921.5,0.000199,31]
[346476648,1734992937784,921.5,0.000199,31]
[346476649,1734992937820,921.5,0.000199,31]
[346476650,1734992937850,921.5,0.000199,31]
[346476651,1734992937886,921.5,0.000199,31]
[346476652,1734992937916,921.5,0.000199,31]
[346476653,1734992937964,921.5,0.000199,31]
[346476654,1734992938018,921.5,0.000199,31]
[346476655,1734992956376,-191.43045937,0.00010116,2]
[346476657,1734992956404,-300.0,0.00010175,2]
[346476658,1734992956433,-807.3934231,0.00010176,2]
[346476659,1734992956466,-1298.82388247,0.00010176,2]
[346476661,1734992967918,24900.0,9.936e-05,2]
[346476662,1734992981383,-1350.77683776,0.00010216,2]
[346476664,1734992981444,-1350.77683776,0.00010216,2]
[346476666,1734992981487,-266.43908662,0.00010216,2]
[346476668,1734993006485,-1410.13669301,0.00010216,2]
[346476670,1734993006558,-184.09903359,0.00010216,2]
[346476732,1734993032858,-1010.00798006,0.00010216,2]
[346476734,1734993032868,-1143.3630609,0.000105,2]
[346476736,1734993032877,-398.57,0.000106,2]
[346476738,1734993032886,-892.33665477,0.00010653,2]
[346476741,1734993032897,-215.06706452,0.00011058,2]
[346477308,1734993038728,-841.03154148,0.00011058,2]
[346477311,1734993038744,-751.89684868,0.00011058,2]
[346477394,1734993040709,-342.974665,0.00011058,2]
[346477396,1734993040719,-300.0,0.00011099,2]
[346477398,1734993040728,-300.0,0.00011099,2]
[346477400,1734993040738,-225.9836839,0.000111,2]
[346477402,1734993040747,-153.0,0.000111,2]
[346477404,1734993040757,-704.3021802,0.000111,2]
[346477406,1734993040766,-306.7053664,0.000111,2]
[346477408,1734993040776,-153.0,0.000111,2]
[346477409,1734993040785,-153.0,0.000111,2]
[346477411,1734993040795,-214.1393056,0.000111,2]
[346477413,1734993040804,-603.86772439,0.000111,2]
[346477416,1734993040815,-98.61143731,0.000111,2]
[346477418,1734993040824,-347.68363869,0.00011157,2]
[346477420,1734993040834,-3750.41063852,0.00011158,2]
[346477421,1734993040843,-600.31350379,0.00011158,2]
[346477423,1734993040853,-233.844919,0.00011158,2]
[346477425,1734993040863,-150.0,0.00011158,2]
[346477427,1734993040872,-534.0,0.00011158,2]
[346477429,1734993040881,-2127.0,0.00011158,2]
[346477431,1734993040891,-2358.0,0.00011158,2]
[346477433,1734993040902,-151.0,0.00011158,2]
[346477435,1734993040911,-151.0,0.00011158,2]
[346477437,1734993040921,-151.0,0.00011158,2]
[346477439,1734993040931,-151.0,0.00011158,2]
[346477441,1734993040940,-151.0,0.00011158,2]
[346477443,1734993040949,-151.0,0.00011158,2]
[346477445,1734993040958,-721.975767,0.00011158,2]
[346477447,1734993040968,-721.975767,0.00011158,2]
[346477449,1734993040980,-721.975767,0.00011158,2]
[346477451,1734993040991,-721.975767,0.00011158,2]
[346477453,1734993041000,-721.975767,0.00011158,2]
[346477455,1734993041009,-721.975767,0.00011158,2]
[346477457,1734993041019,-151.0,0.00011158,2]
[346477459,1734993041028,-151.0,0.00011158,2]
[346477461,1734993041038,-151.0,0.00011158,2]
[346477462,1734993041048,-253.70213,0.00011158,2]
[346477464,1734993041057,-265.064908,0.00011158,2]
[346477466,1734993041068,-151.0,0.00011158,2]
[346477469,1734993041078,-151.0,0.00011158,2]
[346477471,1734993041087,-151.0,0.00011158,2]
[346477473,1734993041097,-30601.85249071,0.00011158,2]
[346477620,1734993044023,-22449.9693,0.00011158,2]
[346477665,1734993053946,894.5,0.0002207,60]
[346477672,1734993549757,774.14,0.000199,31]
[346477673,1734993549807,774.14,0.000199,31]
[346477674,1734993549880,774.14,0.000199,31]
[346477675,1734993549993,774.14,0.000199,31]
[346477676,1734993550047,774.14,0.000199,31]
[346477677,1734993550108,774.14,0.000199,31]
[346477678,1734993550171,774.14,0.000199,31]
[346477679,1734993550225,774.14,0.000199,31]
[346477680,1734993550291,774.14,0.000199,31]
[346477681,1734993550348,774.14,0.000199,31]
[346477682,1734993550471,774.14,0.000199,31]
[346477683,1734993550518,774.14,0.000199,31]
[346477684,1734993550553,774.14,0.000199,31]
[346477685,1734993550584,774.14,0.000199,31]
[346477686,1734993550653,774.14,0.000199,31]
[346477687,1734993550871,774.14,0.000199,31]
[346477688,1734993822230,1400.0,0.00022,60]
[346477695,1734993986756,600.0,9.99e-05,2]
[346477696,1734994001902,413.9373971,9.99e-05,2]
[346477699,1734994161773,650.34,0.000199,31]
[346477700,1734994161822,650.34,0.000199,31]
[346477701,1734994161889,650.34,0.000199,31]
[346477702,1734994161948,650.34,0.000199,31]
[346477703,1734994162006,650.34,0.000199,31]
[346477704,1734994162067,650.34,0.000199,31]
[346477705,1734994162126,650.34,0.000199,31]
[346477706,1734994162193,650.34,0.000199,31]
[346477707,1734994162445,650.34,0.000199,31]
[346477708,1734994162649,650.34,0.000199,31]
[346477709,1734994162691,650.34,0.000199,31]
[346477710,1734994162726,650.34,0.000199,31]
[346477711,1734994162762,650.34,0.000199,31]
[346477712,1734994162882,650.34,0.000199,31]
[346477713,1734994162940,650.34,0.000199,31]
[346477714,1734994162988,650.34,0.000199,31]
[346477715,1734994187254,-300.0,0.00010091,2]
[346477716,1734994187283,-300.0,0.00010091,2]
[346477717,1734994187312,-689.1417919,0.00010092,2]
[346477718,1734994187355,-805.54904521,0.00010092,2]
[346477719,1734994212199,-300.0,0.00010091,2]
[346477720,1734994212230,-1031.03560865,0.00010092,2]
[346477721,1734994212263,-1331.03560865,0.00010092,2]
[346477782,1734994233017,-8548.48757792,0.00010092,2]
[346477785,1734994233037,-1855.42159987,0.00010092,2]
[346477786,1734994233047,-261.74633982,0.000105,2]
[346477788,1734994233056,-394.271,0.000106,2]
[346477790,1734994233065,-261.74633982,0.00010694,2]
[346477792,1734994233075,-261.74633982,0.00010887,2]
[346477794,1734994233084,-343.73013361,0.00010958,2]
[346478578,1734994240909,-32.1332827,0.00010958,2]
[346478580,1734994240918,-880.70017854,0.00010959,2]
[346478898,1734994243746,-7728.09787351,0.00010959,2]
[346479200,1734994246899,-3609.41452725,0.00010959,2]
[346479203,1734994246909,-152.0,0.00010987,2]
[346479205,1734994246918,-152.0,0.00010987,2]
[346479207,1734994246927,-152.0,0.00010987,2]
[346479209,1734994246937,-152.0,0.00010987,2]
[346479211,1734994246946,-152.0,0.00010987,2]
[346479213,1734994246955,-152.0,0.00010987,2]
[346479215,1734994246964,-152.0,0.00010987,2]
[346479217,1734994246973,-152.0,0.00010987,2]
[346479219,1734994246982,-152.0,0.00010987,2]
[346479221,1734994246991,-152.0,0.00010987,2]
[346479223,1734994247000,-152.0,0.00010987,2]
[346479225,1734994247009,-152.0,0.00010987,2]
[346479226,1734994247021,-152.0,0.00010987,2]
[346479228,1734994247030,-152.0,0.00010987,2]
[346479230,1734994247039,-152.0,0.00010987,2]
[346479232,1734994247048,-152.0,0.00010987,2]
[346479235,1734994247058,-152.0,0.00010987,2]
[346479237,1734994247067,-152.0,0.00010987,2]
[346479239,1734994247076,-152.0,0.00010987,2]
[346479241,1734994247085,-200.0,0.00010987,2]
[346479242,1734994247094,-189.0,0.00011,2]
[346479244,1734994247103,-703.1912083,0.00011,2]
[346479246,1734994247112,-153.3796741,0.00011,2]
[346479249,1734994247122,-209.443204,0.00011,2]
[346479251,1734994247131,-486.6627312,0.00011046,2]
[346479253,1734994247140,-438.47529011,0.00011058,2]
[346479255,1734994247149,-1935.87310773,0.00011058,2]
[346479256,1734994247158,-420.0,0.00011099,2]
[346479258,1734994247167,-1000.0,0.00011151,2]
[346479260,1734994247176,-500.0,0.00011157,2]
[346479262,1734994247185,-1875.20531926,0.00011158,2]
[346479264,1734994247193,-300.15675189,0.00011158,2]
[346479266,1734994247202,-1000.0,0.00011158,2]
[346479268,1734994247211,-271.585,0.00011158,2]
[346479270,1734994247220,-150.0,0.00011158,2]
[346479272,1734994247229,-2127.0,0.00011158,2]
[346479274,1734994247238,-534.0,0.00011158,2]
[346479276,1734994247247,-151.0,0.00011158,2]
[346479278,1734994247255,-151.0,0.00011158,2]
[346479280,1734994247264,-151.0,0.00011158,2]
[346479282,1734994247273,-127.90986616,0.00011158,2]
[346479285,1734994247285,-23.09013384,0.00011158,2]
[346479287,1734994247294,-871.15272316,0.00011158,2]
[346479725,1734994383851,4028.136,0.0002207,60]
[346479727,1734994460499,329.92685442,9.956e-05,2]
[346479728,1734994486325,6696.09,0.0002207,60]
[346479729,1734994654889,205.1790048,9.969e-05,2]
[346479730,1734994660853,160.723338,9.984e-05,2]
[346479731,1734994661262,160.723338,9.988e-05,2]
[346479732,1734994661485,160.723338,9.992e-05,2]
[346479733,1734994661725,160.723338,9.996e-05,2]
[346479734,1734994661949,160.723338,0.00010001,2]
[346479735,1734994662229,160.723338,0.00010005,2]
[346479736,1734994662425,160.723338,0.00010009,2]
[346479737,1734994662635,160.723338,0.00010013,2]
[346479738,1734994662833,160.723338,0.00010017,2]
[346479739,1734994663070,160.723338,0.00010021,2]
[346479740,1734994663282,160.723338,0.00010026,2]
[346479741,1734994663494,160.723338,0.0001003,2]
[346479742,1734994699943,160.723338,9.934e-05,2]
[346479743,1734994715151,160.723338,9.934e-05,2]
[346479744,1734994730472,160.723338,9.934e-05,2]
[346479745,1734994733328,21919.56300976,9.971e-05,2]
[346479746,1734994733357,2980.43699024,9.971e-05,2]
[346479747,1734994745764,160.723338,9.934e-05,2]
[346479748,1734994761537,160.723338,9.934e-05,2]
[346479749,1734994773791,546.33,0.000199,31]
[346479750,1734994773850,546.33,0.000199,31]
[346479751,1734994773899,546.33,0.000199,31]
[346479752,1734994773966,546.33,0.000199,31]
[346479753,1734994774113,546.33,0.000199,31]
[346479754,1734994774163,546.33,0.000199,31]
[346479755,1734994774225,546.33,0.000199,31]
[346479756,1734994774284,546.33,0.000199,31]
[346479757,1734994774339,546.33,0.000199,31]
[346479758,1734994774391,546.33,0.000199,31]
[346479759,1734994774449,546.33,0.000199,31]
[346479760,1734994774509,546.33,0.000199,31]
[346479761,1734994774563,546.33,0.000199,31]
[346479762,1734994774619,546.33,0.000199,31]
[346479763,1734994774690,546.33,0.000199,31]
[346479764,1734994774739,546.33,0.000199,31]
[346479765,1734994776751,160.723338,9.934e-05,2]
[346479766,1734994792523,160.723338,9.934e-05,2]
[346479768,1734994807791,160.723338,9.934e-05,2]
[346479769,1734994823551,160.723338,9.934e-05,2]
[346479770,1734994838693,160.723338,9.934e-05,2]
[346479771,1734994854995,160.723338,9.934e-05,2]
[346479772,1734994870081,160.723338,9.934e-05,2]
[346479776,1734995035492,651.0,0.0002207,120]
[346479778,1734995072477,160.723338,9.934e-05,2]
[346479779,1734995133124,-160.723338,0.00010034,2]